fUSD/lending_fUSD_20241015
["ID","MTS","AMOUNT","RATE_DAILY","PERIOD"]
[340274995,1728984638565,-500.0,0.00022494,2]
[340274996,1728984638575,-823.0,0.00022616,2]
[340274997,1728984638585,-10652.4219561,0.00022668,5]
[340274998,1728984638595,-316.84,0.00023,2]
[340274999,1728984638604,-1006.14,0.00023,2]
[340275000,1728984638615,-420.46573183,0.00023033,2]
[340275001,1728984638624,-3000.0,0.000233,2]
[340275002,1728984638634,-420.46573183,0.00023322,2]
[340275003,1728984638644,-174.88,0.00023368,2]
[340275004,1728984638654,-150.0,0.00023546,2]
[340275005,1728984638664,-420.46573183,0.00023572,2]
[340275006,1728984638673,-500.0,0.00023746,2]
[340275007,1728984638682,-316.84,0.0002387,2]
[340275008,1728984638692,-420.46573183,0.0002394,2]
[340275009,1728984638702,-755.88,0.00024055,2]
[340275010,1728984638712,-517.51,0.00024055,2]
[340275011,1728984638721,-755.88,0.00024055,2]
[340275012,1728984638731,-424.17,0.00024055,2]
[340275013,1728984638741,-424.17,0.00024055,2]
[340275014,1728984638749,-753.94,0.00024055,2]
[340275015,1728984638759,-423.05,0.00024055,2]
[340275016,1728984638768,-10652.4219561,0.00024118,5]
[340275017,1728984638778,-150.0,0.00024192,2]
[340275018,1728984638788,-429.63,0.00024192,2]
[340275019,1728984638797,-359.24,0.00024192,2]
[340275020,1728984638807,-535.12,0.00024192,2]
[340275021,1728984638816,-150.0,0.00024192,2]
[340275022,1728984638825,-300.0,0.00024192,2]
[340275023,1728984638834,-150.0,0.00024192,2]
[340275024,1728984638843,-150.0,0.00024192,2]
[340275025,1728984638853,-150.0,0.00024192,2]
[340275026,1728984638863,-535.12,0.00024192,2]
[340275027,1728984638872,-150.0,0.00024192,2]
[340275028,1728984638881,-150.0,0.00024192,2]
[340275029,1728984638891,-359.24,0.00024192,2]
[340275030,1728984638900,-150.0,0.00024192,2]
[340275031,1728984638910,-429.63,0.00024192,2]
[340275032,1728984638919,-150.0,0.00024192,2]
[340275033,1728984638928,-429.63,0.00024192,2]
[340275034,1728984638938,-150.0,0.00024192,2]
[340275035,1728984638949,-535.12,0.00024192,2]
[340275036,1728984638958,-150.0,0.00024192,2]
[340275037,1728984638968,-150.0,0.00024192,2]
[340275038,1728984638977,-150.0,0.00024192,2]
[340275039,1728984638987,-150.0,0.00024192,2]
[340275040,1728984638996,-359.03,0.00024192,2]
[340275041,1728984639006,-535.12,0.00024192,2]
[340275042,1728984639016,-429.31,0.00024192,2]
[340275043,1728984639028,-535.12,0.00024192,2]
[340275044,1728984639038,-150.0,0.00024192,2]
[340275045,1728984639048,-535.12,0.00024192,2]
[340275046,1728984639057,-535.12,0.00024192,2]
[340275047,1728984639069,-535.12,0.00024192,2]
[340275048,1728984639078,-535.12,0.00024192,2]
[340275049,1728984639087,-409.3,0.00024269,2]
[340275050,1728984639098,-420.46573183,0.00024297,2]
[340275051,1728984639108,-5093.988,0.0002439,2]
[340275052,1728984639117,-1000.0,0.0002441,2]
[340275053,1728984639127,-10652.4219561,0.00024465,5]
[340275054,1728984639136,-150.14,0.00024466,2]
[340275055,1728984639146,-150.0,0.00024466,2]
[340275056,1728984639156,-150.0,0.00024466,2]
[340275057,1728984639165,-1006.14,0.00024475,2]
[340275058,1728984639174,-1113.77795237,0.000245,2]
[340275059,1728984639184,-1027.28181602,0.000245,2]
[340275060,1728984639194,-420.46573183,0.00024605,2]
[340275061,1728984639204,-1152.0,0.00024692,2]
[340275062,1728984639214,-150.0,0.00024726,2]
[340275063,1728984639223,-150.0,0.00024737,2]
[340275064,1728984639233,-316.84,0.0002474,2]
[340275065,1728984639242,-1500.0,0.00024749,2]
[340275066,1728984639252,-150.0,0.00024752,2]
[340275067,1728984639262,-150.0,0.00024761,2]
[340275068,1728984639271,-150.0,0.00024764,2]
[340275069,1728984639280,-150.0,0.00024772,2]
[340275070,1728984639290,-150.0,0.00024774,2]
[340275071,1728984639299,-150.0,0.00024776,2]
[340275072,1728984639308,-150.0,0.00024778,2]
[340275073,1728984639318,-150.0,0.00024778,2]
[340275074,1728984639327,-150.0,0.00024779,2]
[340275075,1728984639336,-150.0,0.00024781,2]
[340275076,1728984639345,-150.0,0.00024784,2]
[340275077,1728984639355,-10652.4219561,0.00024785,5]
[340275078,1728984639364,-150.0,0.00024793,2]
[340275079,1728984639373,-150.0,0.00024794,2]
[340275080,1728984639383,-1570.48343947,0.00024795,2]
[340275081,1728984639392,-1500.0,0.00024795,2]
[340275082,1728984639402,-1500.0,0.00024795,2]
[340275083,1728984639411,-150.0,0.00024796,2]
[340275084,1728984639420,-150.0,0.00024799,2]
[340275085,1728984639429,-1500.0,0.00024805,2]
[340275086,1728984639439,-150.0,0.00024806,2]
[340275087,1728984639450,-150.0,0.00024812,2]
[340275088,1728984639459,-150.0,0.00024813,2]
[340275089,1728984639469,-1500.0,0.00024817,2]
[340275090,1728984639479,-150.0,0.00024821,2]
[340275091,1728984639488,-150.0,0.00024824,2]
[340275092,1728984639497,-150.0,0.00024825,2]
[340275093,1728984639507,-1500.0,0.00024826,2]
[340275094,1728984639517,-150.0,0.00024828,2]
[340275095,1728984639527,-10652.4219561,0.00024829,5]
[340275096,1728984639537,-150.0,0.00024835,2]
[340275097,1728984639546,-150.48335225,0.00024837,2]
[340275098,1728984639556,-150.0,0.00024839,2]
[340275099,1728984639566,-420.46573185,0.00024839,2]
[340275100,1728984639576,-150.0,0.00024842,2]
[340275101,1728984639585,-1500.0,0.00024843,2]
[340275102,1728984639594,-150.0,0.00024844,2]
[340275103,1728984639604,-1500.0,0.00024844,2]
[340275104,1728984639614,-1500.0,0.00024845,2]
[340275105,1728984639624,-150.0,0.00024846,2]
[340275106,1728984639633,-150.0,0.00024847,2]
[340275107,1728984639643,-1500.0,0.00024849,2]
[340275108,1728984639652,-150.0,0.00024854,2]
[340275109,1728984639662,-150.0,0.00024856,2]
[340275110,1728984639671,-150.0,0.00024857,2]
[340275111,1728984639682,-150.0,0.0002486,2]
[340275112,1728984639691,-150.0,0.00024864,2]
[340275113,1728984639701,-150.0,0.00024867,2]
[340275114,1728984639710,-150.0,0.00024869,2]
[340275115,1728984639720,-150.0,0.0002487,2]
[340275116,1728984639730,-150.0,0.0002487,2]
[340275117,1728984639739,-150.0,0.00024871,2]
[340275118,1728984639749,-150.0,0.00024872,2]
[340275119,1728984639758,-10652.4219561,0.00024873,5]
[340275120,1728984639768,-1500.0,0.00024874,2]
[340275121,1728984639777,-1500.0,0.00024875,2]
[340275122,1728984639787,-1500.0,0.00024878,2]
[340275123,1728984639797,-150.0,0.0002488,2]
[340275124,1728984639807,-2470.7728,0.00024883,2]
[340275125,1728984639816,-1423.5003,0.00024883,2]
[340275126,1728984639825,-150.0,0.00024886,2]
[340275127,1728984639836,-150.0,0.0002489,2]
[340275128,1728984639845,-342.66365258,0.0002489,2]
[340275129,1728984639854,-342.66365256,0.00024895,2]
[340275130,1728984639864,-153.78881167,0.00024897,2]
[340275131,1728984639873,-150.0,0.00024899,2]
[340275132,1728984639883,-150.0,0.00024899,2]
[340275133,1728984639892,-150.0,0.00024899,2]
[340275134,1728984639902,-255.53163842,0.000249,4]
[340275135,1728984639911,-150.0,0.000249,2]
[340275136,1728984639920,-161.51104664,0.000249,2]
[340275137,1728984639930,-593.79334407,0.000249,2]
[340275138,1728984639940,-342.66365256,0.000249,2]
[340275139,1728984639950,-1500.0,0.00024902,2]
[340275140,1728984639959,-150.0,0.00024905,2]
[340275141,1728984639969,-150.0,0.00024906,2]
[340275143,1728984639978,-10652.4219561,0.00024909,5]
[340275145,1728984639988,-150.0,0.0002491,2]
[340275146,1728984639997,-150.0,0.00024919,2]
[340275147,1728984640006,-150.0,0.00024925,2]
[340275148,1728984640016,-1500.0,0.00024926,2]
[340275149,1728984640031,-150.0,0.00024932,2]
[340275150,1728984640041,-1500.0,0.00024932,2]
[340275151,1728984640051,-150.0,0.00024935,2]
[340275152,1728984640061,-150.0,0.00024941,2]
[340275153,1728984640071,-150.0,0.00024944,2]
[340275154,1728984640081,-150.0,0.00024945,2]
[340275155,1728984640091,-150.0,0.00024953,2]
[340275157,1728984640101,-1500.0,0.00024954,2]
[340275158,1728984640111,-150.0,0.0002496,2]
[340275159,1728984640121,-150.0,0.00024963,2]
[340275160,1728984640131,-150.0,0.00024964,2]
[340275161,1728984640141,-10652.4219561,0.00024967,5]
[340275162,1728984640150,-150.0,0.00024967,2]
[340275163,1728984640160,-150.0,0.00024968,2]
[340275164,1728984640169,-53262.1097803,0.00024969,5]
[340275165,1728984640179,-151.57,0.00024969,2]
[340275166,1728984640188,-21304.8439121,0.0002497,5]
[340275167,1728984640200,-14950.3245324,0.0002497,5]
[340275168,1728984640209,-14950.3245324,0.00024977,5]
[340275169,1728984640219,-1500.0,0.00024979,2]
[340275170,1728984640229,-10652.4219561,0.0002498,5]
[340275171,1728984640238,-14950.3245324,0.0002498,5]
[340275172,1728984640247,-150.0,0.00024982,2]
[340275173,1728984640257,-42609.6878242,0.00024987,5]
[340275174,1728984640267,-29900.6490649,0.00024987,5]
[340275175,1728984640275,-512.95960432,0.00024989,7]
[340275176,1728984640285,-560.28667098,0.00024989,7]
[340275177,1728984640294,-500.0,0.00024989,7]
[340275178,1728984640304,-500.0,0.00024989,7]
[340275179,1728984640314,-31957.2658682,0.0002499,5]
[340275180,1728984640324,-104919.30975591,0.0002499,5]
[340275181,1728984640338,-587.31257813,0.0002499,5]
[340275182,1728984640385,-541.68735,0.0002499,5]
[340275183,1728984640447,-7029.39139103,0.0002499,5]
[340275184,1728984640618,-1137.7,0.0002499,5]
[340275225,1728984646217,-486.45,0.00024192,2]
[340275226,1728984646227,-3038.86599718,0.0002499,5]
[340275227,1728984646276,-371.51,0.0002499,5]
[340275229,1728984732985,158.09,0.00010959,2]
[340275230,1728984800442,200.0,0.000265,120]
[340275232,1728985767926,156.3,0.00010959,2]
[340275240,1728985831472,-184.451814,0.00019739,2]
[340275241,1728985831480,-399.519375,0.000198,2]
[340275242,1728985831489,-150.0,0.00019863,2]
[340275243,1728985831499,-150.0,0.00019899,2]
[340275244,1728985831508,-171.72562133,0.000199,2]
[340275245,1728985831529,-297.04785907,0.000199,2]
[340275246,1728985831542,-4756.9776196,0.000199,2]
[340275247,1728985831551,-262.4105,0.000199,2]
[340275248,1728985831561,-441.8888,0.000199,2]
[340275249,1728985831570,-14442.30938866,0.000199,2]
[340275250,1728985831589,-654.11630791,0.000199,2]
[340275251,1728985831600,-2482.282,0.000199,2]
[340275254,1728985837435,-10257.16310343,0.000199,2]
[340275255,1728985837445,-499.99,0.000199,2]
[340275256,1728985837459,-2926.37612649,0.000199,2]
[340275257,1728985837553,-994.33001744,0.000199,2]
[340275258,1728985837562,-9.96034239,0.00021496,2]
[340275267,1728985839751,-343.85965761,0.00021496,2]
[340275268,1728985839761,-150.99,0.00021713,2]
[340275269,1728985839770,-150.0,0.00021713,2]
[340275270,1728985839779,-261.74,0.00021713,2]
[340275271,1728985839788,-150.0,0.00021713,2]
[340275272,1728985839798,-150.188,0.00021713,2]
[340275273,1728985839807,-318.06,0.00023,2]
[340275274,1728985839816,-1012.66,0.00023,2]
[340275275,1728985839825,-7360.8,0.00023,2]
[340275276,1728985839834,-158.51,0.0002307,2]
[340275277,1728985839844,-172.43,0.00023095,2]
[340275278,1728985839854,-250.0,0.00023108,2]
[340275279,1728985839865,-1015.39,0.00023171,2]
[340275280,1728985839875,-150.0,0.00023212,2]
[340275281,1728985839884,-223.64,0.00023247,2]
[340275282,1728985839893,-158.82171739,0.00023297,2]
[340275285,1728985842459,-91.17828261,0.00023297,2]
[340275286,1728985842468,-349.78,0.00023329,2]
[340275287,1728985842477,-658.07,0.0002334,2]
[340275288,1728985842486,-262.82,0.00023365,2]
[340275289,1728985842496,-167.85,0.00023379,30]
[340275290,1728985842506,-250.0,0.00023402,2]
[340275291,1728985842515,-153.7,0.00023406,2]
[340275292,1728985842525,-696.96,0.00023428,2]
[340275293,1728985842534,-1000.0,0.00023619,2]
[340275294,1728985842543,-290.34786132,0.00023707,2]
[340275305,1728985845596,-21.27213868,0.00023707,2]
[340275306,1728985845606,-350.93786132,0.00023759,2]
[340275313,1728986925576,155.63,0.00010959,2]
[340275328,1728987031735,-1733.0,0.000157,2]
[340275329,1728987031744,-150.0,0.00019625,2]
[340275330,1728987031753,-367.23,0.00020263,2]
[340275331,1728987031763,-174.89,0.0002188,2]
[340275332,1728987031772,-17030.41,0.00022236,2]
[340275333,1728987031781,-500.0,0.00022421,3]
[340275334,1728987031790,-1053.59000794,0.0002243,2]
[340275335,1728987031799,-4562.67,0.0002243,2]
[340275336,1728987031808,-500.0,0.0002243,3]
[340275337,1728987031817,-150.99,0.0002243,2]
[340275338,1728987031826,-500.0,0.00022438,3]
[340275339,1728987031835,-500.0,0.00022447,3]
[340275340,1728987031844,-500.0,0.00022456,3]
[340275341,1728987031857,-500.0,0.00022465,3]
[340275342,1728987031866,-500.0,0.00022474,3]
[340275343,1728987031875,-2590.96,0.00022474,2]
[340275344,1728987031883,-300.0,0.00022481,2]
[340275345,1728987031893,-500.0,0.00022482,3]
[340275346,1728987031902,-499.99,0.00022482,2]
[340275347,1728987031911,-273.60107025,0.00022482,2]
[340275348,1728987031923,-7832.70000015,0.00022482,2]
[340275720,1728987037776,-714.46633905,0.00022482,2]
[340275721,1728987037788,-1179.22259055,0.00022482,2]
[340275722,1728987037797,-500.0,0.00022491,3]
[340275723,1728987037806,-500.0,0.000225,3]
[340275724,1728987037816,-367.23,0.00022527,2]
[340275725,1728987037826,-1000.0,0.00022535,2]
[340275726,1728987037835,-250.0,0.00022766,2]
[340275727,1728987037846,-250.0,0.00022782,2]
[340275728,1728987037859,-259.68,0.00022782,2]
[340275729,1728987037871,-303.48,0.00023,2]
[340275730,1728987037882,-1013.82,0.00023,2]
[340275731,1728987037892,-157.36,0.00023291,2]
[340275732,1728987037903,-172.43,0.00023461,2]
[340275733,1728987037916,-167.85,0.00023732,30]
[340275734,1728987037928,-2000.0,0.00023759,2]
[340275735,1728987037937,-200.0,0.00023759,2]
[340275736,1728987037948,-230.50827323,0.00023759,2]
[340275737,1728987037958,-3000.0,0.000238,2]
[340275738,1728987037968,-1134.0,0.000238,2]
[340275739,1728987037978,-3806.0061,0.000239,2]
[340275740,1728987037988,-395.6864,0.000239,2]
[340275741,1728987037998,-555.8781,0.000239,2]
[340275742,1728987038007,-1283.0,0.000239,2]
[340275743,1728987038017,-22024.29253622,0.0002395,5]
[340275744,1728987038028,-8355.461751,0.0002395,5]
[340275745,1728987038039,-37616.033428,0.0002395,5]
[340275746,1728987038051,-1003.34036097,0.0002395,5]
[340275747,1728987038121,-107447.85026797,0.0002395,5]
[340275748,1728987038130,-2500.0,0.00023999,2]
[340275749,1728987038139,-500.0,0.00024,2]
[340275750,1728987038148,-503.56,0.00024,2]
[340275751,1728987038158,-500.0,0.00024,2]
[340275752,1728987038167,-500.0,0.00024,2]
[340275754,1728987038176,-500.0,0.00024,2]
[340275755,1728987038186,-264.01,0.00024,2]
[340275757,1728987038195,-500.0,0.00024,2]
[340275759,1728987038204,-500.0,0.00024,2]
[340275761,1728987038214,-500.0,0.00024,2]
[340275763,1728987038224,-500.0,0.00024,2]
[340275765,1728987038233,-500.0,0.00024,2]
[340275767,1728987038243,-500.0,0.00024,2]
[340275768,1728987038252,-503.45,0.00024,2]
[340275769,1728987038261,-285.7,0.00024,2]
[340275770,1728987038270,-500.0,0.00024,2]
[340275771,1728987038279,-500.0,0.00024,2]
[340275772,1728987038288,-500.0,0.00024,2]
[340275773,1728987038297,-500.0,0.00024,2]
[340275774,1728987038307,-500.0,0.00024,2]
[340275775,1728987038316,-500.0,0.00024,2]
[340275776,1728987038325,-500.0,0.00024,2]
[340275777,1728987038335,-500.0,0.00024,2]
[340275778,1728987038344,-500.0,0.00024,2]
[340275779,1728987038353,-500.0,0.00024,2]
[340275780,1728987038363,-500.0,0.00024,2]
[340275781,1728987038372,-500.0,0.00024,2]
[340275782,1728987038381,-500.0,0.00024,2]
[340275783,1728987038391,-500.0,0.00024,2]
[340275784,1728987038400,-500.0,0.00024,2]
[340275785,1728987038410,-500.0,0.00024,2]
[340275786,1728987038419,-500.0,0.00024,2]
[340275787,1728987038429,-500.0,0.00024,2]
[340275788,1728987038438,-500.0,0.00024,2]
[340275789,1728987038448,-500.0,0.00024,2]
[340275790,1728987038457,-500.0,0.00024,2]
[340275791,1728987038466,-500.0,0.00024,2]
[340275792,1728987038477,-500.0,0.00024,2]
[340275793,1728987038486,-500.0,0.00024,2]
[340275794,1728987038496,-500.0,0.00024,2]
[340275795,1728987038505,-500.0,0.00024,2]
[340275796,1728987038514,-500.0,0.00024,2]
[340275797,1728987038523,-500.0,0.00024,2]
[340275798,1728987038532,-500.0,0.00024,2]
[340275799,1728987038541,-500.0,0.00024,2]
[340275800,1728987038550,-500.0,0.00024,2]
[340275801,1728987038559,-500.0,0.00024,2]
[340275802,1728987038568,-500.0,0.00024,2]
[340275803,1728987038577,-500.0,0.00024,2]
[340275804,1728987038586,-500.0,0.00024,2]
[340275805,1728987038595,-500.0,0.00024,2]
[340275806,1728987038604,-500.0,0.00024,2]
[340275807,1728987038613,-500.0,0.00024,2]
[340275808,1728987038621,-500.0,0.00024,2]
[340275809,1728987038631,-500.0,0.00024,2]
[340275810,1728987038639,-500.0,0.00024,2]
[340275811,1728987038648,-500.0,0.00024,2]
[340275812,1728987038657,-500.0,0.00024,2]
[340275813,1728987038666,-500.0,0.00024,2]
[340275814,1728987038676,-500.0,0.00024,2]
[340275815,1728987038685,-210.0,0.0002405,2]
[340275816,1728987038694,-303.48,0.00024165,2]
[340275817,1728987038705,-210.0,0.0002452,2]
[340275818,1728987038714,-16099.84244254,0.00024625,2]
[340275819,1728987038723,-156.23030464,0.0002469,2]
[340275820,1728987038732,-150.0,0.00024713,2]
[340275821,1728987038741,-150.0,0.00024736,2]
[340275822,1728987038750,-180.21296539,0.0002474,2]
[340275823,1728987038760,-150.0,0.0002474,2]
[340275824,1728987038770,-8928.07707056,0.00024749,2]
[340275825,1728987038780,-1013.82,0.0002475,2]
[340275826,1728987038790,-150.0,0.00024765,2]
[340275827,1728987038799,-9123.13278928,0.00024779,5]
[340275828,1728987038808,-150.0,0.00024782,2]
[340275829,1728987038817,-150.0,0.00024787,2]
[340275830,1728987038827,-38380.6978,0.00024789,2]
[340275831,1728987038836,-338.4727,0.0002479,2]
[340275832,1728987038845,-367.23,0.00024791,2]
[340275833,1728987038859,-150.0,0.00024792,2]
[340275834,1728987038868,-9123.13278928,0.00024821,5]
[340275835,1728987038878,-161.33,0.00024824,8]
[340275836,1728987038887,-150.0,0.00024829,2]
[340275837,1728987038898,-150.0,0.00024831,2]
[340275838,1728987038908,-9123.13278928,0.00024869,5]
[340275839,1728987038917,-9123.13278928,0.00024879,5]
[340275840,1728987038927,-27369.3983678,0.0002488,5]
[340275841,1728987038937,-150.0,0.00024883,2]
[340275842,1728987038947,-150.0,0.00024886,2]
[340275843,1728987038955,-624.73979605,0.00024889,7]
[340275844,1728987038964,-534.93817306,0.00024889,7]
[340275845,1728987038974,-500.0,0.00024889,7]
[340275846,1728987038983,-175.19255356,0.00024889,2]
[340275847,1728987038993,-1000.0,0.0002489,2]
[340275848,1728987039002,-18573.1919,0.0002489,2]
[340275849,1728987039011,-22927.7324,0.0002489,2]
[340275850,1728987039020,-10986.6341,0.0002489,2]
[340275851,1728987039029,-4008.7672,0.0002489,2]
[340275852,1728987039038,-150.0,0.00024897,2]
[340275853,1728987039047,-381.27940567,0.000249,2]
[340275854,1728987039056,-631.48746026,0.000249,4]
[340275855,1728987039066,-161.43347078,0.000249,2]
[340275856,1728987039075,-156.23030464,0.000249,2]
[340275857,1728987039084,-195.47382231,0.000249,2]
[340275858,1728987039093,-10429.1730355,0.000249,2]
[340275859,1728987039102,-150.0,0.00024903,2]
[340275860,1728987039112,-150.0,0.00024931,2]
[340275861,1728987039122,-150.0,0.00024934,2]
[340275862,1728987039131,-150.0,0.00024934,2]
[340275863,1728987039140,-150.0,0.00024939,2]
[340275864,1728987039149,-9123.13278928,0.00024951,5]
[340275865,1728987039158,-9123.13278928,0.0002496,5]
[340275866,1728987039167,-150.0,0.0002496,2]
[340275867,1728987039177,-151.57,0.0002496,2]
[340275868,1728987039187,-54738.7967357,0.00024969,5]
[340275869,1728987039196,-58457.68163764,0.0002497,5]
[340275871,1728987039847,-0.29845311,0.0002497,5]
[340275872,1728987039956,-824.37871235,0.0002497,5]
[340275875,1728987043654,-768.10110773,0.0002497,5]
[340275876,1728987473235,158.09,0.00010959,2]
[340275877,1728987778330,268.3106496,0.0001,2]
[340275879,1728988080309,5593.95582899,0.00011,2]
[340277246,1728988231790,-313.45570478,0.000159,2]
[340277247,1728988231801,-260.36775229,0.000159,2]
[340277248,1728988231947,-360.50156887,0.000159,2]
[340277249,1728988231962,-73.67497406,0.000159,2]
[340277250,1728988231972,-323.7496,0.000198,2]
[340277251,1728988231981,-781.51629935,0.000199,3]
[340277252,1728988232038,-943.51185294,0.000199,3]
[340277258,1728988237790,-6594.26803039,0.000199,3]
[340277271,1728988239838,-27940.02146212,0.000199,3]
[340277272,1728988239847,-765.09912105,0.00021555,2]
[340277273,1728988239955,-672.38024697,0.00021555,2]
[340277274,1728988239964,-312.14,0.00021655,2]
[340277275,1728988239975,-235.47975353,0.00022109,2]
[340277276,1728988239986,-1950.58610927,0.00022109,2]
[340277280,1728988242955,-3527.14652579,0.00022109,2]
[340277281,1728988242978,-169.78761141,0.00022109,2]
[340277282,1728988242987,-150.0,0.00022109,2]
[340277283,1728988242996,-183.40389272,0.00022109,2]
[340277291,1728988248674,-758.58610728,0.00022109,2]
[340277292,1728988248683,-13529.0,0.00022109,2]
[340277293,1728988248693,-555.0,0.00022109,2]
[340277294,1728988248703,-1908.0,0.00022109,2]
[340277295,1728988248713,-1082.0,0.00022109,2]
[340277296,1728988248722,-3356.0,0.00022109,2]
[340277297,1728988248733,-809.0,0.00022109,2]
[340277298,1728988248742,-464.553252,0.00023,2]
[340277299,1728988248752,-999.86,0.00023,2]
[340277300,1728988248761,-3000.0,0.000233,2]
[340277301,1728988248770,-499.99,0.00023401,2]
[340277302,1728988248780,-9999.99,0.00023401,2]
[340277303,1728988248790,-174.89,0.00023448,2]
[340277304,1728988248799,-250.0,0.00023453,2]
[340277305,1728988248808,-250.0,0.00023463,2]
[340277306,1728988248818,-157.36,0.00023492,2]
[340277307,1728988248827,-8648.69,0.0002353,2]
[340277308,1728988248837,-216.4,0.00023544,2]
[340277309,1728988248846,-1000.0,0.0002372,2]
[340277310,1728988248856,-14082.2,0.0002372,2]
[340277311,1728988248865,-4936.8951,0.0002385,2]
[340277312,1728988248874,-312.14,0.00023919,2]
[340277313,1728988248884,-167.85,0.00023939,30]
[340277314,1728988248893,-366.79,0.00024,2]
[340277315,1728988248903,-999.86,0.0002406,2]
[340277316,1728988248913,-1117.72998748,0.00024471,2]
[340277317,1728988248923,-1026.77865567,0.00024471,2]
[340277318,1728988248932,-1145.15762913,0.00024471,2]
[340277319,1728988248942,-1570.66490486,0.00024497,2]
[340277320,1728988248952,-3521.06711268,0.0002478,2]
[340277321,1728988248961,-5817.5505,0.0002478,2]
[340277322,1728988248970,-3521.06711264,0.00024793,2]
[340277323,1728988248981,-3497.970885,0.000248,2]
[340277324,1728988248991,-158.545,0.00024828,8]
[340277325,1728988249000,-234.464,0.00024828,8]
[340277326,1728988249010,-150.0,0.00024861,2]
[340277327,1728988249019,-150.0,0.00024875,2]
[340277328,1728988249029,-37614.4521,0.0002488,2]
[340277329,1728988249038,-2500.0,0.0002488,2]
[340277330,1728988249048,-197.269,0.00024887,2]
[340277331,1728988249058,-9092.2626,0.00024889,2]
[340277332,1728988249067,-6870.26,0.0002489,2]
[340277333,1728988249077,-161.0835701,0.000249,2]
[340277334,1728988249086,-359.97951113,0.000249,3]
[340277335,1728988249096,-203.36233304,0.000249,2]
[340277336,1728988249105,-5800.0,0.000249,2]
[340277337,1728988249115,-913.85406453,0.00024981,2]
[340277338,1728988249124,-13364.79488492,0.00024987,9]
[340277339,1728988249134,-500.0,0.00024989,7]
[340277340,1728988249144,-502.17717582,0.00024989,7]
[340277341,1728988249153,-500.0,0.00024989,7]
[340277342,1728988249163,-500.0,0.00024989,7]
[340277343,1728988249172,-500.0,0.00024989,7]
[340277344,1728988249181,-41885.617873,0.00024989,5]
[340277345,1728988249191,-151.57,0.00024989,2]
[340277346,1728988249200,-125656.853619,0.0002499,5]
[340277347,1728988249211,-167542.471492,0.0002499,5]
[340277348,1728988249220,-151.57,0.0002499,2]
[340277349,1728988249230,-151.0,0.0002499,7]
[340277350,1728988249239,-157.124478,0.00024997,5]
[340277351,1728988249249,-191.05848595,0.00024999,2]
[340277352,1728988249258,-500.0,0.00024999,2]
[340277353,1728988249267,-500.0,0.00024999,7]
[340277354,1728988249277,-232.10299851,0.00024999,7]
[340277355,1728988249287,-375.0,0.00024999,2]
[340277356,1728988249296,-500.0,0.00024999,7]
[340277357,1728988249305,-500.0,0.00024999,7]
[340277358,1728988249315,-500.0,0.00024999,7]
[340277359,1728988249324,-500.0,0.00024999,7]
[340277360,1728988249334,-500.0,0.00024999,7]
[340277361,1728988249343,-500.0,0.00024999,7]
[340277362,1728988249351,-615.69560874,0.00024999,7]
[340277363,1728988249359,-500.0,0.00024999,7]